lending/lending_fUSD_20240824
["ID","MTS","AMOUNT","RATE_DAILY","PERIOD"]
[335719300,1724461846473,-533.56076043,0.00010999,2]
[335719301,1724461846482,-500.0,0.00010999,2]
[335719302,1724461846491,-1496.47,0.00010999,2]
[335719303,1724461846500,-500.0,0.00010999,2]
[335719304,1724461846509,-1496.47,0.00010999,2]
[335719305,1724461846518,-500.0,0.00010999,2]
[335719306,1724461846527,-171.66558609,0.00010999,2]
[335719307,1724461846538,-1324.80441391,0.00010999,2]
[335719308,1724461846547,-481.82,0.00010999,2]
[335719309,1724461846556,-1496.47,0.00010999,2]
[335719310,1724461846565,-185.777558,0.00010999,2]
[335719311,1724461846576,-647.526547,0.00010999,2]
[335719312,1724461846588,-663.165895,0.00010999,2]
[335719313,1724461846597,-76.534155,0.00010999,2]
[335719314,1724461846608,-669.21960628,0.00010999,2]
[335719315,1724461846619,-750.71623872,0.00010999,2]
[335719316,1724461846628,-1496.47,0.00010999,2]
[335719317,1724461846638,-1496.47,0.00010999,2]
[335719318,1724461846647,-1496.63,0.00010999,2]
[335719319,1724461846656,-891.69,0.00010999,2]
[335719320,1724461846666,-891.69,0.00010999,2]
[335719321,1724461846675,-891.69,0.00010999,2]
[335719322,1724461846684,-891.69,0.00010999,2]
[335719323,1724461846694,-891.69,0.00010999,2]
[335719324,1724461846703,-891.69,0.00010999,2]
[335719325,1724461846712,-891.69,0.00010999,2]
[335719326,1724461846721,-891.69,0.00010999,2]
[335719327,1724461846730,-891.69,0.00010999,2]
[335719328,1724461846740,-891.69,0.00010999,2]
[335719329,1724461846749,-891.69,0.00010999,2]
[335719330,1724461846758,-891.69,0.00010999,2]
[335719331,1724461846767,-891.69,0.00010999,2]
[335719332,1724461846776,-624.43,0.00010999,2]
[335719333,1724461846786,-891.69,0.00010999,2]
[335719334,1724461846795,-624.43,0.00010999,2]
[335719335,1724461846804,-891.69,0.00010999,2]
[335719336,1724461846813,-891.69,0.00010999,2]
[335719337,1724461846822,-624.43,0.00010999,2]
[335719338,1724461846831,-891.73,0.00010999,2]
[335719339,1724461846840,-624.43,0.00010999,2]
[335719340,1724461846850,-624.43,0.00010999,2]
[335719341,1724461846859,-624.43,0.00010999,2]
[335719342,1724461846875,-624.43,0.00010999,2]
[335719343,1724461846884,-624.43,0.00010999,2]
[335719344,1724461846894,-624.43,0.00010999,2]
[335719345,1724461846905,-624.43,0.00010999,2]
[335719346,1724461846915,-624.43,0.00010999,2]
[335719347,1724461846924,-624.43,0.00010999,2]
[335719348,1724461846934,-624.43,0.00010999,2]
[335719349,1724461846944,-624.43,0.00010999,2]
[335719350,1724461846954,-624.43,0.00010999,2]
[335719351,1724461846963,-624.43,0.00010999,2]
[335719352,1724461846973,-624.43,0.00010999,2]
[335719353,1724461846983,-624.65,0.00010999,2]
[335719354,1724461846992,-507.76,0.00010999,2]
[335719355,1724461847002,-507.76,0.00010999,2]
[335719356,1724461847012,-507.76,0.00010999,2]
[335719357,1724461847021,-507.76,0.00010999,2]
[335719358,1724461847031,-507.76,0.00010999,2]
[335719359,1724461847041,-507.76,0.00010999,2]
[335719360,1724461847051,-507.76,0.00010999,2]
[335719361,1724461847061,-507.76,0.00010999,2]
[335719362,1724461847070,-507.76,0.00010999,2]
[335719363,1724461847080,-507.76,0.00010999,2]
[335719364,1724461847090,-507.76,0.00010999,2]
[335719365,1724461847100,-507.76,0.00010999,2]
[335719366,1724461847109,-507.76,0.00010999,2]
[335719367,1724461847119,-507.76,0.00010999,2]
[335719368,1724461847128,-507.76,0.00010999,2]
[335719369,1724461847138,-507.76,0.00010999,2]
[335719370,1724461847149,-507.98,0.00010999,2]
[335719371,1724461847158,-765.69,0.00010999,2]
[335719372,1724461847167,-765.69,0.00010999,2]
[335719373,1724461847177,-765.69,0.00010999,2]
[335719374,1724461847187,-765.69,0.00010999,2]
[335719375,1724461847196,-765.69,0.00010999,2]
[335719376,1724461847206,-765.69,0.00010999,2]
[335719377,1724461847215,-765.69,0.00010999,2]
[335719378,1724461847224,-765.69,0.00010999,2]
[335719379,1724461847233,-765.69,0.00010999,2]
[335719380,1724461847242,-765.69,0.00010999,2]
[335719381,1724461847251,-765.69,0.00010999,2]
[335719382,1724461847261,-765.69,0.00010999,2]
[335719383,1724461847270,-765.69,0.00010999,2]
[335719384,1724461847280,-765.69,0.00010999,2]
[335719385,1724461847289,-765.69,0.00010999,2]
[335719386,1724461847298,-765.69,0.00010999,2]
[335719387,1724461847308,-765.69,0.00010999,2]
[335719388,1724461847320,-500.0,0.00010999,2]
[335719389,1724461847329,-500.0,0.00010999,2]
[335719391,1724461847339,-765.85928988,0.00010999,2]
[335719392,1724461847349,-500.0,0.00010999,2]
[335719395,1724461847359,-500.0,0.00010999,2]
[335719396,1724461847368,-202.74109959,0.00010999,2]
[335719399,1724461847383,-297.25890041,0.00010999,2]
[335719400,1724461847393,-462.85701684,0.00010999,2]
[335719401,1724461847406,-37.14298316,0.00010999,2]
[335719402,1724461847415,-364.56907036,0.00010999,2]
[335719403,1724461847427,-135.43092964,0.00010999,2]
[335719404,1724461847437,-500.0,0.00010999,2]
[335719405,1724461847447,-500.0,0.00010999,2]
[335719406,1724461847457,-500.0,0.00010999,2]
[335719407,1724461847466,-500.0,0.00010999,2]
[335719408,1724461847475,-500.0,0.00010999,2]
[335719409,1724461847485,-500.0,0.00010999,2]
[335719410,1724461847494,-198.56011275,0.00010999,2]
[335719411,1724461847506,-301.43988725,0.00010999,2]
[335719412,1724461847515,-223.8,0.00010999,2]
[335719413,1724461847524,-500.0,0.00010999,2]
[335719414,1724461847534,-500.0,0.00010999,2]
[335719415,1724461847543,-553.59,0.00010999,2]
[335719416,1724461847553,-581.52,0.00010999,2]
[335719418,1724461847562,-500.0,0.00010999,2]
[335719420,1724461847571,-125.07728687,0.00010999,2]
[335719422,1724461847583,-456.44271313,0.00010999,2]
[335719424,1724461847592,-500.0,0.00010999,2]
[335719426,1724461847601,-581.52,0.00010999,2]
[335719428,1724461847611,-500.0,0.00010999,2]
[335719430,1724461847620,-500.0,0.00010999,2]
[335719432,1724461847629,-581.52,0.00010999,2]
[335719434,1724461847639,-500.0,0.00010999,2]
[335719436,1724461847649,-331.76786753,0.00010999,2]
[335719439,1724461847661,-249.75213247,0.00010999,2]
[335719441,1724461847670,-500.0,0.00010999,2]
[335719443,1724461847680,-581.52,0.00010999,2]
[335719445,1724461847689,-500.0,0.00010999,2]
[335719447,1724461847699,-500.0,0.00010999,2]
[335719449,1724461847708,-581.52,0.00010999,2]
[335719451,1724461847717,-500.0,0.00010999,2]
[335719453,1724461847727,-500.0,0.00010999,2]
[335719455,1724461847736,-374.72,0.00010999,2]
[335719457,1724461847745,-581.52,0.00010999,2]
[335719459,1724461847754,-500.0,0.00010999,2]
[335719461,1724461847763,-581.52,0.00010999,2]
[335719463,1724461847773,-500.0,0.00010999,2]
[335719465,1724461847782,-581.52,0.00010999,2]
[335719467,1724461847791,-500.0,0.00010999,2]
[335719469,1724461847801,-581.52,0.00010999,2]
[335719471,1724461847810,-500.0,0.00010999,2]
[335719473,1724461847819,-581.52,0.00010999,2]
[335719475,1724461847828,-500.0,0.00010999,2]
[335719477,1724461847837,-581.52,0.00010999,2]
[335719479,1724461847846,-500.0,0.00010999,2]
[335719481,1724461847855,-446.29582021,0.00010999,2]
[335719483,1724461847876,-135.22417979,0.00010999,2]
[335719485,1724461847890,-581.52,0.00010999,2]
[335719487,1724461847901,-399.79403523,0.00010999,2]
[335719489,1724461847914,-100.20596477,0.00010999,2]
[335719491,1724461847923,-549.3,0.00010999,2]
[335719493,1724461847933,-581.52,0.00010999,2]
[335719495,1724461847942,-581.52,0.00010999,2]
[335719497,1724461847951,-650.21,0.00010999,2]
[335719499,1724461847961,-650.21,0.00010999,2]
[335719501,1724461847971,-650.21,0.00010999,2]
[335719503,1724461847980,-650.21,0.00010999,2]
[335719505,1724461847990,-1851.71,0.00010999,2]
[335719507,1724461848000,-50.24948273,0.00010999,2]
[335719520,1724461848114,-1293.96377079,0.00010899,2]
[335719522,1724461848124,-1801.46051727,0.00010999,2]
[335719524,1724461848133,-645.56,0.00010999,2]
[335719526,1724461848144,-1851.71,0.00010999,2]
[335719528,1724461848158,-1851.71,0.00010999,2]
[335719530,1724461848167,-645.56,0.00010999,2]
[335719532,1724461848177,-1851.71,0.00010999,2]
[335719534,1724461848187,-645.56,0.00010999,2]
[335719536,1724461848196,-650.21,0.00010999,2]
[335719538,1724461848206,-645.56,0.00010999,2]
[335719540,1724461848215,-645.56,0.00010999,2]
[335719542,1724461848224,-1851.71,0.00010999,2]
[335719544,1724461848233,-650.21,0.00010999,2]
[335719546,1724461848242,-645.56,0.00010999,2]
[335719548,1724461848251,-1200.4081967,0.00010999,2]
[335719550,1724461848263,-526.02,0.00010999,2]
[335719552,1724461848278,-125.2818033,0.00010999,2]
[335719554,1724461848287,-650.21,0.00010999,2]
[335719556,1724461848296,-645.56,0.00010999,2]
[335719558,1724461848306,-1851.71,0.00010999,2]
[335719560,1724461848315,-650.21,0.00010999,2]
[335719562,1724461848325,-645.56,0.00010999,2]
[335719564,1724461848334,-1851.71,0.00010999,2]
[335719566,1724461848343,-650.21,0.00010999,2]
[335719568,1724461848353,-645.56,0.00010999,2]
[335719570,1724461848362,-1851.71,0.00010999,2]
[335719572,1724461848372,-650.21,0.00010999,2]
[335719574,1724461848381,-645.56,0.00010999,2]
[335719576,1724461848391,-1851.71,0.00010999,2]
[335719579,1724461848403,-650.21,0.00010999,2]
[335719580,1724461848412,-645.56,0.00010999,2]
[335719583,1724461848421,-1851.71,0.00010999,2]
[335719585,1724461848431,-650.21,0.00010999,2]
[335719587,1724461848440,-645.56,0.00010999,2]
[335719589,1724461848449,-717.89196854,0.00010999,2]
[335719591,1724461848461,-1133.81803146,0.00010999,2]
[335719593,1724461848471,-650.21,0.00010999,2]
[335719595,1724461848481,-645.56,0.00010999,2]
[335719597,1724461848490,-650.21,0.00010999,2]
[335719599,1724461848500,-1851.71,0.00010999,2]
[335719601,1724461848510,-645.56,0.00010999,2]
[335719603,1724461848519,-650.21,0.00010999,2]
[335719605,1724461848529,-1851.71,0.00010999,2]
[335719607,1724461848538,-645.56,0.00010999,2]
[335719609,1724461848547,-650.21,0.00010999,2]
[335719611,1724461848557,-1851.71,0.00010999,2]
[335719613,1724461848567,-645.56,0.00010999,2]
[335719615,1724461848577,-650.21,0.00010999,2]
[335719617,1724461848587,-1851.71,0.00010999,2]
[335719619,1724461848598,-645.72,0.00010999,2]
[335719621,1724461848609,-650.35,0.00010999,2]
[335719623,1724461848618,-1851.74,0.00010999,2]
[335719625,1724461848628,-799.23,0.00010999,2]
[335719627,1724461848638,-1833.01,0.00010999,2]
[335719629,1724461848650,-799.23,0.00010999,2]
[335719631,1724461848661,-799.23,0.00010999,2]
[335719633,1724461848670,-1833.01,0.00010999,2]
[335719635,1724461848680,-799.23,0.00010999,2]
[335719637,1724461848690,-1833.01,0.00010999,2]
[335719639,1724461848700,-799.23,0.00010999,2]
[335719641,1724461848710,-1833.01,0.00010999,2]
[335719643,1724461848720,-799.23,0.00010999,2]
[335719645,1724461848729,-1833.01,0.00010999,2]
[335719647,1724461848739,-799.23,0.00010999,2]
[335719649,1724461848749,-633.2,0.00010999,2]
[335719651,1724461848758,-1833.01,0.00010999,2]
[335719653,1724461848768,-799.23,0.00010999,2]
[335719655,1724461848777,-1833.01,0.00010999,2]
[335719657,1724461848787,-633.2,0.00010999,2]
[335719659,1724461848796,-799.23,0.00010999,2]
[335719661,1724461848806,-633.2,0.00010999,2]
[335719663,1724461848816,-799.23,0.00010999,2]
[335719665,1724461848826,-1833.01,0.00010999,2]
[335719667,1724461848836,-633.2,0.00010999,2]
[335719669,1724461848846,-799.23,0.00010999,2]
[335719671,1724461848856,-1833.01,0.00010999,2]
[335719673,1724461848869,-633.2,0.00010999,2]
[335719675,1724461848878,-799.23,0.00010999,2]
[335719677,1724461848889,-1833.01,0.00010999,2]
[335719679,1724461848900,-633.2,0.00010999,2]
[335719681,1724461848911,-799.23,0.00010999,2]
[335719683,1724461848922,-1833.01,0.00010999,2]
[335719685,1724461848934,-633.2,0.00010999,2]
[335719687,1724461848946,-799.23,0.00010999,2]
[335719689,1724461848958,-1833.01,0.00010999,2]
[335719690,1724461848969,-633.2,0.00010999,2]
[335719691,1724461849124,-799.23,0.00010999,2]
[335719692,1724461849134,-1833.01,0.00010999,2]
[335719694,1724461849144,-633.2,0.00010999,2]
[335719696,1724461849157,-799.23,0.00010999,2]
[335719698,1724461849166,-1833.01,0.00010999,2]
[335719700,1724461849176,-633.2,0.00010999,2]
[335719702,1724461849186,-799.23,0.00010999,2]
[335719704,1724461849195,-1833.01,0.00010999,2]
[335719706,1724461849205,-633.2,0.00010999,2]
[335719708,1724461849215,-799.27,0.00010999,2]
[335719710,1724461849225,-1833.01,0.00010999,2]
[335719712,1724461849235,-633.2,0.00010999,2]
[335719713,1724461849244,-1833.09,0.00010999,2]
[335719715,1724461849253,-616.11307741,0.00010999,2]
[335719718,1724461849267,-17.08692259,0.00010999,2]
[335719720,1724461849276,-633.2,0.00010999,2]
[335719722,1724461849285,-633.2,0.00010999,2]
[335719723,1724461849294,-633.2,0.00010999,2]
[335719726,1724461849304,-633.33050548,0.00010999,2]
[335719727,1724461849314,-763.59168489,0.00010999,2]
[335719741,1724461849441,-428.36516426,0.000109,2]
[335719743,1724461849452,-2807.81747002,0.000109,2]
[335719745,1724461849463,-11753.8997033,0.000109,2]
[335719747,1724461849473,-639.07831511,0.00010999,2]
[335719749,1724461849483,-1402.67,0.00010999,2]
[335719751,1724461849492,-509.31,0.00010999,2]
[335719753,1724461849501,-1402.67,0.00010999,2]
[335719755,1724461849511,-509.31,0.00010999,2]
[335719757,1724461849520,-1402.67,0.00010999,2]
[335719759,1724461849530,-509.31,0.00010999,2]
[335719761,1724461849539,-1402.67,0.00010999,2]
[335719763,1724461849549,-509.31,0.00010999,2]
[335719765,1724461849558,-1402.67,0.00010999,2]
[335719767,1724461849568,-509.31,0.00010999,2]
[335719769,1724461849577,-1402.67,0.00010999,2]
[335719771,1724461849587,-1402.67,0.00010999,2]
[335719772,1724461849597,-509.31,0.00010999,2]
[335719774,1724461849606,-1402.67,0.00010999,2]
[335719776,1724461849616,-1402.67,0.00010999,2]
[335719778,1724461849626,-509.31,0.00010999,2]
[335719780,1724461849636,-1402.67,0.00010999,2]
[335719782,1724461849645,-1402.67,0.00010999,2]
[335719784,1724461849656,-509.31,0.00010999,2]
[335719786,1724461849665,-1402.67,0.00010999,2]
[335719788,1724461849674,-509.31,0.00010999,2]
[335719790,1724461849683,-1370.45299033,0.00010999,2]
[335719792,1724461849695,-32.21700967,0.00010999,2]
[335719794,1724461849706,-509.31,0.00010999,2]
[335719796,1724461849715,-1002.05812474,0.00010999,2]
[335719798,1724461849727,-400.61187526,0.00010999,2]
[335719800,1724461849737,-509.31,0.00010999,2]
[335719802,1724461849748,-861.3605208,0.00010999,2]
[335719804,1724461849759,-541.3094792,0.00010999,2]
[335719806,1724461849768,-509.31,0.00010999,2]
[335719808,1724461849778,-1402.67,0.00010999,2]
[335719810,1724461849788,-509.31,0.00010999,2]
[335719812,1724461849797,-1402.89,0.00010999,2]
[335719813,1724461849806,-509.31,0.00010999,2]
[335719815,1724461849816,-509.31,0.00010999,2]
[335719817,1724461849826,-509.31,0.00010999,2]
[335719819,1724461849836,-111.4033448,0.00010999,2]
[335720241,1724461877889,150.0,0.0001,2]
[335720242,1724461877912,150.0,0.0001,2]
[335720243,1724461877934,150.0,0.0001,2]
[335720244,1724461877954,150.0,0.0001,2]
[335720245,1724461877980,450.0,0.0001,2]
[335720246,1724461893826,500.0,0.00027,120]
[335720247,1724461937570,3000.0,0.00027,120]
[335720248,1724461941999,158.79,7.42e-05,2]
[335720252,1724462011207,295.50430273,8.994e-05,2]
[335720256,1724462104547,5000.0,9e-05,2]
[335720257,1724462114598,474.7,8.219e-05,2]
[335720260,1724462155552,150.0,9.962e-05,2]
[335720261,1724462155572,150.0,9.962e-05,2]
[335720262,1724462155592,150.0,9.962e-05,2]
[335720263,1724462155612,150.0,9.962e-05,2]
[335720264,1724462155632,265.82,9.962e-05,2]
[335720265,1724462155656,18662.91538114,9.962e-05,2]
[335720266,1724462160455,351.36632347,9.962e-05,2]
[335720270,1724462411735,678.0,0.00027,120]
[335720271,1724462419106,150.0,7.229e-05,2]
[335720272,1724462419130,8.79,7.229e-05,2]
[335720273,1724462446125,225.21,9.964e-05,2]
[335720274,1724462446149,329.27,9.964e-05,2]
[335720275,1724462541447,450.0,9.928e-05,2]
[335720276,1724462574790,269.44,9.928e-05,2]
[335720279,1724462733698,1857.96363476,0.00027,120]
[335720280,1724462739106,150.0,0.00010009,2]
[335720281,1724462739128,150.0,0.00010009,2]
[335720282,1724462739151,150.0,0.00010009,2]
[335720283,1724462739172,146.24400213,0.00010009,2]
[335720285,1724462743449,3.75599787,8.219e-05,2]
[335720286,1724462743472,150.0,8.219e-05,2]
[335720287,1724462743496,383.30400213,8.219e-05,2]
[335720289,1724462823672,150.0,9.888e-05,2]
[335720290,1724462824430,150.0,9.976e-05,2]
[335720291,1724462824451,214.496428,9.976e-05,2]
[335720292,1724462824479,2812.049115,9.976e-05,2]
[335720293,1724462836993,300.0,9.975e-05,2]
[335720298,1724462838174,10542.54247587,0.00010009,2]
[335720301,1724462870367,485.07840464,0.00010009,2]
[335720302,1724462871668,1051.23408298,0.00010009,2]
[335720303,1724462872123,162.85453106,0.00010009,2]
[335720304,1724462872291,3127.7,0.00027,120]
[335720305,1724462874976,5420.80296546,0.0001,2]
[335720306,1724462880668,1000.0,9.911e-05,2]
[335720307,1724462881809,1257.73185636,0.00010009,2]
[335720308,1724462883668,413.35824992,0.00010009,2]
[335720312,1724462950651,158.79,7.187e-05,2]
[335720314,1724462959143,181.97999253,0.00010009,2]
[335720331,1724462980107,150.0,9.91e-05,2]
[335720332,1724462980127,241.73296123,9.91e-05,2]
[335720333,1724462980150,355.10703877,9.91e-05,2]
[335720344,1724463008699,170.64,9.894e-05,2]
[335720363,1724463034221,309.05772676,8.711e-05,2]
[335720364,1724463037916,-2945.21277521,0.00010026,2]
[335720366,1724463037925,-6409.11267536,0.00010026,2]
[335720368,1724463037934,-300.0,0.00010096,2]
[335720370,1724463037944,-3039.82292487,0.00010097,2]
[335720371,1724463037953,-4600.0,0.000101,2]
[335720373,1724463037963,-229.36,0.00010124,2]
[335720375,1724463037974,-1673.08782014,0.00010471,2]
[335720376,1724463037984,-155.55802597,0.00010471,2]
[335720377,1724463037994,-537.06,0.00010472,2]
[335720378,1724463038003,-155.0,0.00010505,2]
[335720379,1724463038012,-376.00802265,0.00010505,2]
[335720380,1724463038021,-421.51,0.000107,2]
[335720381,1724463038031,-420.76,0.000107,2]
[335720382,1724463038039,-426.87,0.000107,2]
[335720383,1724463038048,-150.0,0.000107,2]
[335720384,1724463038058,-150.0,0.000107,2]
[335720385,1724463038071,-150.0,0.000107,2]
[335720386,1724463038080,-426.87,0.000107,2]
[335720387,1724463038089,-150.0,0.000107,2]
[335720388,1724463038098,-271.02636755,0.00010713,2]
[335720389,1724463038107,-364.02,0.00010785,2]
[335720390,1724463038116,-150.0,0.00010785,2]
[335720391,1724463038126,-39816.89780705,0.00010786,2]
[335720392,1724463038151,-771.85767508,0.00010786,2]
[335720393,1724463038164,-3048.91164779,0.00010786,2]
[335720394,1724463038176,-33278.88494011,0.00010786,2]
[335720395,1724463038188,-343.25791043,0.00010786,2]
[335720396,1724463038201,-1768.43667,0.00010786,2]
[335720397,1724463038223,-3146.7938,0.00010786,2]
[335720398,1724463038239,-884.28010879,0.00010786,2]
[335720399,1724463038250,-4289.49647196,0.00010786,2]
[335720400,1724463038261,-2848.42156879,0.00010786,2]
[335720401,1724463038271,-1725.47,0.000108,2]
[335720402,1724463038280,-421.51,0.000108,2]
[335720403,1724463038289,-1116.03,0.000108,2]
[335720404,1724463038299,-426.87,0.000108,2]
[335720406,1724463038308,-713.42,0.000108,2]
[335720408,1724463038319,-426.87,0.000108,2]
[335720410,1724463038328,-150.0,0.000108,2]
[335720412,1724463038337,-150.0,0.000108,2]
[335720414,1724463038346,-633.97047201,0.000108,2]
[335720416,1724463038355,-40291.15206346,0.0001088,2]
[335720418,1724463038364,-662.51068986,0.00010888,2]
[335720419,1724463038373,-573.59292,0.0001089,2]
[335720421,1724463038382,-323.61057116,0.0001089,2]
[335720423,1724463038391,-2486.3739,0.00010894,2]
[335720426,1724463038401,-234.3002,0.00010898,2]
[335720427,1724463038411,-3979.8986,0.00010899,2]
[335720429,1724463038420,-500.0,0.00010899,2]
[335720431,1724463038429,-776.37826247,0.000109,2]
[335720434,1724463038439,-776.37826247,0.000109,2]
[335720436,1724463038448,-776.37826247,0.000109,2]
[335720437,1724463038458,-1000.0,0.000109,2]
[335720441,1724463038467,-171.32378074,0.00010958,2]
[335720445,1724463038477,-500.0,0.00010958,2]
[335720446,1724463038488,-419.82670671,0.00010958,2]
[335720450,1724463038497,-500.0,0.00010958,2]
[335720453,1724463038506,-500.0,0.00010958,2]
[335720455,1724463038515,-500.0,0.00010958,2]
[335720458,1724463038524,-500.0,0.00010958,2]
[335720460,1724463038534,-500.0,0.00010958,2]
[335720462,1724463038543,-500.0,0.00010958,2]
[335720464,1724463038551,-500.0,0.00010958,2]
[335720466,1724463038562,-500.0,0.00010958,2]
[335720468,1724463038571,-500.0,0.00010958,2]
[335720470,1724463038580,-164.25316924,0.00010959,2]
[335720472,1724463038592,-0.89683076,0.00010959,2]
[335720474,1724463038601,-525.95,0.00010994,2]
[335720476,1724463038610,-500.0,0.00010994,2]
[335720478,1724463038621,-500.0,0.00010994,2]
[335720480,1724463038631,-500.0,0.00010994,2]
[335720482,1724463038640,-334.17,0.00010994,2]
[335720484,1724463038650,-569.39981127,0.00010996,2]
[335720486,1724463038659,-13.92576099,0.00010997,2]
[335720489,1724463038671,-486.07423901,0.00010997,2]
[335720490,1724463038680,-500.0,0.00010997,2]
[335720492,1724463038690,-2666.8828913,0.00010997,2]
[335720494,1724463038699,-5448.42102759,0.00010997,2]
[335720497,1724463038710,-8693.51986952,0.00010997,2]
[335720499,1724463038721,-1381.24087936,0.00010997,2]
[335720523,1724463038947,-3175.40501545,0.00010997,2]
[335720607,1724463039979,-605.06484465,0.00010997,2]
[335720610,1724463039990,-3017.34446,0.00010997,2]
[335720623,1724463040110,-1077.47456925,0.00010997,2]
[335720656,1724463040434,-4588.39130587,0.00010997,2]
[335720899,1724463042947,-1120.08688867,0.000109,2]
[335720902,1724463042958,-191.63610004,0.000109,2]
[335720905,1724463042968,-102.72389997,0.000109,2]
[335720909,1724463042979,-209.22348734,0.000109,2]
[335720912,1724463042987,-293.96801679,0.00010997,2]
[335720926,1724463043053,-754.24318941,0.00010997,2]
[335720929,1724463043064,-1192.94208411,0.00010997,2]
[335720931,1724463043074,-208.93737762,0.00010997,2]
[335720934,1724463043083,-500.0,0.00010997,2]
[335720936,1724463043092,-500.0,0.00010997,2]
[335720939,1724463043101,-500.0,0.00010998,2]
[335720942,1724463043110,-481.01572953,0.00010998,2]
[335720944,1724463043119,-500.0,0.00010998,2]
[335720947,1724463043127,-3192.45178138,0.00010998,2]
[335720950,1724463043138,-3067.36856786,0.00010998,2]
[335720952,1724463043149,-1164.90682513,0.00010998,2]
[335720955,1724463043160,-703.26018713,0.00010998,2]
[335720958,1724463043169,-138.26452537,0.00010998,2]
[335720960,1724463043180,-361.73547463,0.00010998,2]
[335720963,1724463043190,-205.90312038,0.00010998,2]
[335720966,1724463043200,-294.09687962,0.00010998,2]
[335720969,1724463043210,-500.0,0.00010998,2]
[335720971,1724463043219,-500.0,0.00010998,2]
[335720973,1724463043228,-500.0,0.00010998,2]
[335720976,1724463043241,-500.0,0.00010998,2]
[335720979,1724463043250,-500.0,0.00010998,2]
[335720981,1724463043259,-500.0,0.00010998,2]
[335720984,1724463043268,-500.0,0.00010998,2]
[335720986,1724463043279,-500.0,0.00010998,2]
[335720988,1724463043288,-500.0,0.00010998,2]
[335720991,1724463043297,-500.0,0.00010998,2]
[335720994,1724463043306,-500.0,0.00010998,2]
[335720996,1724463043316,-500.0,0.00010998,2]
[335720999,1724463043325,-553.69488413,0.00010998,2]
[335721001,1724463043335,-500.0,0.00010998,2]
[335721004,1724463043345,-500.0,0.00010998,2]
[335721006,1724463043355,-500.0,0.00010998,2]
[335721008,1724463043363,-285.08390877,0.00010998,2]
[335721010,1724463043375,-214.91609123,0.00010998,2]
[335721012,1724463043384,-500.0,0.00010998,2]
[335721014,1724463043393,-500.0,0.00010998,2]
[335721016,1724463043403,-435.26197006,0.00010998,2]
[335721018,1724463043412,-500.0,0.00010998,2]
[335721020,1724463043420,-515.55521872,0.00010998,2]
[335721022,1724463043431,-694.98560408,0.00010998,2]
[335721024,1724463043442,-2084.4191772,0.00010998,2]
[335721026,1724463043451,-4677.26236645,0.00010998,2]
[335721029,1724463043466,-814.55264413,0.00010998,2]
[335721031,1724463043477,-918.3487726,0.00010998,2]
[335721033,1724463043488,-367.69336575,0.00010998,2]
[335721035,1724463043499,-1732.275,0.00010998,2]
[335721037,1724463043510,-369.12270208,0.00010998,2]
[335721041,1724463043531,-821.406033,0.00010998,2]
[335721044,1724463043542,-290.57000001,0.00010998,2]
[335721048,1724463043552,-1149.07228572,0.00010998,2]
[335721051,1724463043563,-5470.29683026,0.00010998,2]
[335721054,1724463043572,-690.31,0.00010998,2]